{"text_format":"3","workbook":"xlsx","n_sheets":6,"sheets":["SEMESTER","TOČKE","PRORAČUN","NETO MESEČNI IZDATKI","IZDATKI V SEMESTRU","KNJIGE"],"not_rendered":{"defined_names":21},"read":"whole","date_system":"1900"}

{"sheet":"SEMESTER","index":0,"n_rows":29,"n_cols":9,"rows_kept":29,"merged":[[2,3,2,4]]}
[null,"MOJ URNIK POUKA"]
[null,"JESENSKI SEMESTER"]
[null,null,"ZAČETNI ČAS","ČASOVNI INTERVAL",null,"LETO"]
[null,null,"09:00:00",60,"(v minutah)"]
[null,"URA ","PON","TOR","SRE","ČET","PET","SOB","NED"]
[null,{"$f":"Začetni_čas+TIME(0,(ROW(A1)-1)*ČasovniInterval,0)","v":"09:00:00"},"Zajtrk","Zajtrk","Zajtrk","Zajtrk","Zajtrk"]
[null,"10:00:00","Ekonomija: Predavanje v stavbi B, soba 256"]
[null,"11:00:00",{"$nulls":3},"Fizika: Laboratorij \nStavba J, soba 309"]
[null,"12:00:00"]
[null,"13:00:00"]
[null,"14:00:00"]
[null,"15:00:00"]
[null,"16:00:00"]
[null,"17:00:00"]
[null,"18:00:00"]
[null,"19:00:00"]
[null,"20:00:00"]
[null,"21:00:00"]
[null,"22:00:00"]
[null,"23:00:00"]
[null,1]
[null,1.0416666666666665]
[null,1.0833333333333335]
[null,1.125]
[null,1.1666666666666665]
[null,1.2083333333333335]
[null,1.25]
[null,1.2916666666666665]
[null,1.3333333333333335]

{"sheet":"TOČKE","index":1,"n_rows":17,"n_cols":8,"rows_kept":17}
[null,"ŠTUDIJ"]
[null,"NAČRTOVALNIK TOČKOVANJA"]
[null,"Strokovni naslov",{"$f":"Leto","v":"LETO"}]
[null,"CELOTEN NAPREDEK",null,"SKUPEN NAPREDEK"]
[null,{"$f":"AVERAGE(Predmeti[OCENA])","v":3.5},{"$f":"IFERROR(TEXT(AVERAGEIF(Predmeti[DOKONČANO],\"Da\",Predmeti[OCENA]),\"0,00\"),\"0,00\")&\" Trenutna povprečna ocena\"","v":"3,50 Trenutna povprečna ocena"},{"$f":"COUNTIF(Predmeti[DOKONČANO],\"Da\")/COUNTA(Predmeti[NASLOV PREDMETA])","v":0.6666666666666666},{"$f":"TEXT(COUNTIF(Predmeti[DOKONČANO],\"Da\")/COUNTA(Predmeti[NASLOV PREDMETA]),\"0%\")&\" Dokončano\"","v":"67% Dokončano"}]
[null,"Opomba: Povzetek točkovanja je samodejno izpolnjen z vrednostmi, ki jih vnesete v tabelo Predmeti na fakulteti spodaj"]
[null,"POGOJ","SKUPNO ŠTEVILO TOČK","PRISLUŽENO","POTREBNO"]
[null,"Glavna smer študija",{"$f":"IF(SUMIF(Predmeti[ZAHTEVA],TOČKE!$B8,Predmeti[TOČKE])=0,\"0\",SUMIF(Predmeti[ZAHTEVA],TOČKE!$B8,Predmeti[TOČKE]))","v":4},{"$f":"SUMIFS(Predmeti[TOČKE],Predmeti[ZAHTEVA],TOČKE!$B8,Predmeti[DOKONČANO],\"Da\")","v":4},{"$f":"SUMIF(Predmeti[ZAHTEVA],TOČKE!$B8,Predmeti[TOČKE])-SUMIFS(Predmeti[TOČKE],Predmeti[ZAHTEVA],TOČKE!$B8,Predmeti[DOKONČANO],\"Da\")","v":0}]
[null,"Sekundarna smer študija",{"$f":"IF(SUMIF(Predmeti[ZAHTEVA],TOČKE!$B9,Predmeti[TOČKE])=0,\"0\",SUMIF(Predmeti[ZAHTEVA],TOČKE!$B9,Predmeti[TOČKE]))","v":3},{"$f":"SUMIFS(Predmeti[TOČKE],Predmeti[ZAHTEVA],TOČKE!$B9,Predmeti[DOKONČANO],\"Da\")","v":0},{"$f":"SUMIF(Predmeti[ZAHTEVA],TOČKE!$B9,Predmeti[TOČKE])-SUMIFS(Predmeti[TOČKE],Predmeti[ZAHTEVA],TOČKE!$B9,Predmeti[DOKONČANO],\"Da\")","v":3}]
[null,"Izbirni predmet",{"$f":"IF(SUMIF(Predmeti[ZAHTEVA],TOČKE!$B10,Predmeti[TOČKE])=0,\"0\",SUMIF(Predmeti[ZAHTEVA],TOČKE!$B10,Predmeti[TOČKE]))","v":2},{"$f":"SUMIFS(Predmeti[TOČKE],Predmeti[ZAHTEVA],TOČKE!$B10,Predmeti[DOKONČANO],\"Da\")","v":2},{"$f":"SUMIF(Predmeti[ZAHTEVA],TOČKE!$B10,Predmeti[TOČKE])-SUMIFS(Predmeti[TOČKE],Predmeti[ZAHTEVA],TOČKE!$B10,Predmeti[DOKONČANO],\"Da\")","v":0}]
[null,"Splošni študij",{"$f":"IF(SUMIF(Predmeti[ZAHTEVA],TOČKE!$B11,Predmeti[TOČKE])=0,\"0\",SUMIF(Predmeti[ZAHTEVA],TOČKE!$B11,Predmeti[TOČKE]))","v":"0"},{"$f":"SUMIFS(Predmeti[TOČKE],Predmeti[ZAHTEVA],TOČKE!$B11,Predmeti[DOKONČANO],\"Da\")","v":0},{"$f":"SUMIF(Predmeti[ZAHTEVA],TOČKE!$B11,Predmeti[TOČKE])-SUMIFS(Predmeti[TOČKE],Predmeti[ZAHTEVA],TOČKE!$B11,Predmeti[DOKONČANO],\"Da\")","v":0}]
[null,"Skupaj",{"$f":"SUBTOTAL(109,TOČKE!$C$8:$C$11)","v":9},{"$f":"SUBTOTAL(109,TOČKE!$D$8:$D$11)","v":6},{"$f":"SUBTOTAL(109,TOČKE!$E$8:$E$11)","v":3}]
[null,"Predmeti"]
[null,"NASLOV PREDMETA","ŠT. PREDMETA","ZAHTEVA","TOČKE","DOKONČANO","OCENA","SEMESTER"]
[null,"Predmet 1","Številka","Glavna smer študija",4,"Da",{"v":4,"d":"4.0"},"Semester 1"]
[null,"Predmet 2","Številka","Sekundarna smer študija",3,"Ne",null,"Semester 1"]
[null,"Predmet 3","Številka","Izbirni predmet",2,"Da",{"v":3,"d":"3.0"},"Semester 1"]

{"sheet":"PRORAČUN","index":2,"n_rows":15,"n_cols":4,"rows_kept":15,"merged":[[5,1,5,2]]}
[null,{"$f":"Študij","v":"ŠTUDIJ"}]
[null,"SLEDILNIK PRORAČUNA"]
[null,"Moj proračun",{"$f":"Leto","v":"LETO"}]
[null,"ODSTOTEK PORABLJENEGA DOHODKA"]
[null,{"$f":"NETO_MESEČNI_IZDATKI/NETO_MESEČNI_DOHODKI","v":{"v":0.7454545454545455,"d":"1 €"}}]
[null,{"$f":"B5","v":0.7454545454545455}]
[null,"NETO MESEČNI DOHODEK","NETO MESEČNI IZDATKI","BILANCA"]
[null,{"$f":"C10","v":{"v":2750,"d":"2,750 €"}},{"$f":"'NETO MESEČNI IZDATKI'!C4+'IZDATKI V SEMESTRU'!D4","v":{"v":2050,"d":"2,050 €"}},{"$f":"NETO_MESEČNI_DOHODKI-NETO_MESEČNI_IZDATKI","v":{"v":700,"d":"700 €"}}]
[null,"Meseci v semestru",4]
[null,"MESEČNI DOHODEK",{"$f":"SUM(MesečNi_Dohodek[ZNESEK])","v":{"v":2750,"d":"2,750 €"}}]
[null,"ELEMENT","ZNESEK"]
[null,"Fiksen dohodek",{"v":1500,"d":"1,500 €"}]
[null,"Finančna pomoč",{"v":500,"d":"500 €"}]
[null,"Posojila",{"v":500,"d":"500 €"}]
[null,"Drugi dohodki",{"v":250,"d":"250 €"}]

{"sheet":"NETO MESEČNI IZDATKI","index":3,"n_rows":15,"n_cols":3,"rows_kept":15}
[null,{"$f":"Študij","v":"ŠTUDIJ"}]
[null,"SLEDILNIK PRORAČUNA"]
[null,"Mesečni izdatki",{"$f":"Leto","v":"LETO"}]
[null,"MESEČNI IZDATKI",{"$f":"SUM(Mesečni_Izdatki[ZNESEK])","v":{"v":1675,"d":"1,675 €"}}]
[null,"ELEMENT","ZNESEK"]
[null,"Najemnina",{"v":300,"d":"300 €"}]
[null,"Potrebščine",{"v":50,"d":"50 €"}]
[null,"Mobilni telefon",{"v":75,"d":"75 €"}]
[null,"Špecerija",{"v":250,"d":"250 €"}]
[null,"Stroški za avto",{"v":50,"d":"50 €"}]
[null,"Študentska posojila",{"v":500,"d":"500 €"}]
[null,"Kreditne kartice",{"v":275,"d":"275 €"}]
[null,"Zavarovanje",{"v":125,"d":"125 €"}]
[null,"Zabava",{"v":50,"d":"50 €"}]
[null,"Razno",{"v":0,"d":"0 €"}]

{"sheet":"IZDATKI V SEMESTRU","index":4,"n_rows":11,"n_cols":4,"rows_kept":11}
[null,{"$f":"Študij","v":"ŠTUDIJ"}]
[null,"SLEDILNIK PRORAČUNA"]
[null,"Izdatki v semestru",{"$f":"Leto","v":"LETO"}]
[null,"IZDATKI V SEMESTRU (skupaj/na mesec)",{"$f":"SUM(Izdatki_v_semestru[ZNESEK])","v":{"v":1500,"d":"1,500 €"}},{"$f":"SUM(Izdatki_v_semestru[NA MESEC])","v":{"v":375,"d":"375 €"}}]
[null,"ELEMENT","ZNESEK","NA MESEC"]
[null,"Inštrukcije",{"v":750,"d":"750 €"},{"$f":"Izdatki_v_semestru[[#This Row],[ZNESEK]]/Meseci_v_semestru","v":{"v":187.5,"d":"188 €"}}]
[null,"Laboratorijske vaje",{"v":250,"d":"250 €"},{"$f":"Izdatki_v_semestru[[#This Row],[ZNESEK]]/Meseci_v_semestru","v":{"v":62.5,"d":"63 €"}}]
[null,"Gradivo",{"v":500,"d":"500 €"},{"$f":"Izdatki_v_semestru[[#This Row],[ZNESEK]]/Meseci_v_semestru","v":{"v":125,"d":"125 €"}}]
[null,"Pologi",{"v":0,"d":"0 €"},{"$f":"Izdatki_v_semestru[[#This Row],[ZNESEK]]/Meseci_v_semestru","v":{"v":0,"d":"0 €"}}]
[null,"Prevoz",{"v":0,"d":"0 €"},{"$f":"Izdatki_v_semestru[[#This Row],[ZNESEK]]/Meseci_v_semestru","v":{"v":0,"d":"0 €"}}]
[null,"Druge pristojbine",{"v":0,"d":"0 €"},{"$f":"Izdatki_v_semestru[[#This Row],[ZNESEK]]/Meseci_v_semestru","v":{"v":0,"d":"0 €"}}]

{"sheet":"KNJIGE","index":5,"n_rows":7,"n_cols":7,"rows_kept":7}
[null,{"$f":"Študij","v":"ŠTUDIJ"}]
[null,"SLEDILNIK KNJIG"]
[null,"Seznam knjig"]
[null,"NASLOV","AVTOR","PREDMET","KJE KUPITI?","ISBN","OPOMBE"]
[null,"Naslov knjige","Avtor","Predmet","Lokacija","Številka"]
[null,"Naslov knjige","Avtor","Predmet","Lokacija","Številka"]
[null,"Naslov knjige","Avtor","Predmet","Lokacija","Številka"]